bitfinex-derivatives/quotes_BTCF0:USTF0_20210102
["timestamp","ask_amount","ask_price","bid_price","bid_amount"]
[1609556394358,4.7131593,29328.0,29326.0,1.03841389]
[1609556394862,4.7131593,29328.0,29327.0,0.03819744]
[1609556398463,4.71108701,29328.0,29327.0,0.03819744]
[1609556399565,0.17628701,29328.0,29327.0,0.03819744]
[1609556404672,0.29866695,29338.0,29327.0,0.03819744]
[1609556405072,0.00041498,29337.0,29330.0,4.434]
[1609556405372,0.7521,29336.0,29331.0,1.03819792]
[1609556405872,0.7521,29336.0,29332.0,0.03819717]
[1609556406073,0.7521,29336.0,29335.0,0.18043158]
[1609556406472,0.7521,29336.0,29335.0,0.1807944]
[1609556407177,0.7521,29336.0,29335.0,1.1807944]
[1609556407573,0.29866695,29338.0,29335.0,1.1807944]
[1609556407773,0.29866695,29338.0,29335.0,0.1807944]
[1609556407975,0.18043158,29336.0,29335.0,0.18043158]
[1609556408377,0.18043158,29336.0,29335.0,0.18079441]
[1609556412379,0.18084657,29336.0,29335.0,0.18079441]
[1609556412980,0.18084657,29336.0,29335.0,0.18043158]
[1609556413180,0.18084657,29336.0,29335.0,0.18079442]
[1609556414381,0.18043158,29336.0,29335.0,0.18079442]
[1609556414881,0.18084657,29336.0,29335.0,0.18079442]
[1609556415682,0.18043158,29336.0,29335.0,0.18079442]
[1609556416084,0.18043158,29336.0,29335.0,1.18079442]
[1609556418186,0.18043158,29336.0,29335.0,0.18079442]
[1609556421190,0.18043158,29336.0,29335.0,4.99149442]
[1609556422495,0.18043158,29336.0,29335.0,5.99149442]
[1609556422697,0.18043158,29336.0,29335.0,0.18079442]
[1609556423894,0.18043158,29336.0,29335.0,1.18079442]
[1609556430102,0.18043158,29336.0,29335.0,1.21863172]
[1609556434513,0.2883,29338.0,29335.0,1.94793172]
[1609556434713,0.2883,29338.0,29335.0,1.21863172]
[1609556434912,0.00041495,29337.0,29336.0,0.00036281]
[1609556435112,0.00041495,29337.0,29336.0,4.21006281]
[1609556435312,0.00041495,29337.0,29336.0,5.21006281]
[1609556436915,0.00041495,29337.0,29336.0,1.00036281]
[1609556437116,0.00041495,29337.0,29336.0,0.00036281]
[1609556437915,0.00041495,29337.0,29336.0,4.76806281]
[1609556439018,0.00041495,29337.0,29336.0,5.76806281]
[1609556440821,0.13868,29339.0,29336.0,5.76806281]
[1609556440822,0.00041495,29338.0,29336.0,5.76806281]
[1609556441124,0.13868,29339.0,29337.0,0.00036277]
[1609556441523,0.01039718,29341.0,29337.0,0.00036277]
[1609556441721,0.01039718,29341.0,29338.0,0.1011]
[1609556441921,0.00428151,29340.0,29339.0,1.0]
[1609556442322,0.00428151,29340.0,29339.0,1.03818585]
[1609556442522,0.00428151,29340.0,29339.0,4.99128585]
[1609556442721,0.00428151,29340.0,29339.0,5.17171743]
[1609556444029,0.00428151,29340.0,29339.0,5.13389427]
[1609556444226,0.00428151,29340.0,29339.0,6.13389427]
[1609556445432,0.14169,29346.0,29339.0,10.01365961]
[1609556445632,0.1372,29352.0,29339.0,6.06055961]
[1609556445831,0.1372,29352.0,29344.0,4.5778]
[1609556446032,0.18472902,29356.0,29345.0,1.0]
[1609556446233,0.18472902,29356.0,29348.0,1.0]
[1609556446533,0.18472902,29356.0,29348.0,1.58]
[1609556446732,0.18472902,29356.0,29355.0,0.18043158]
[1609556447235,0.18472902,29356.0,29355.0,4.77319427]
[1609556449440,0.18472902,29356.0,29355.0,0.18079427]
[1609556449641,0.18043158,29356.0,29355.0,0.18079427]
[1609556450642,0.18043158,29356.0,29355.0,0.18043158]
[1609556452444,0.34658158,29356.0,29355.0,0.18043158]
[1609556454252,5.31918158,29356.0,29355.0,0.18043158]
[1609556454951,0.34658158,29356.0,29355.0,0.18043158]
[1609556455551,0.34658158,29356.0,29347.0,5.4525]
[1609556455852,0.34658158,29356.0,29348.0,0.00036265]
[1609556456251,1.0,29352.0,29348.0,0.00036265]
[1609556457155,1.0,29352.0,29351.0,0.18043158]
[1609556459156,1.18043158,29352.0,29351.0,0.18043158]
[1609556463262,1.0,29352.0,29351.0,0.18079424]
[1609556464264,0.00427568,29353.0,29351.0,0.18079424]
[1609556464664,0.00427568,29353.0,29352.0,0.00036264]
[1609556464868,0.0042786,29354.0,29352.0,0.00036264]
[1609556465266,0.18043158,29355.0,29352.0,0.00036264]
[1609556467168,0.18043158,29355.0,29354.0,0.18043158]
[1609556467669,0.18043158,29355.0,29354.0,0.18079422]
[1609556471374,0.1808464,29355.0,29354.0,0.18079422]
[1609556477785,0.18513955,29355.0,29354.0,0.18079422]
[1609556483089,0.19559043,29355.0,29354.0,0.18079422]
[1609556485689,0.21200021,29355.0,29354.0,0.18079422]
[1609556486191,1.21200021,29355.0,29354.0,0.18079422]
[1609556486691,1.81677372,29355.0,29354.0,0.18079422]
[1609556488794,1.79607079,29355.0,29354.0,0.18079422]
[1609556490197,0.79607079,29355.0,29354.0,0.18079422]
[1609556490397,1.79607079,29355.0,29354.0,0.18079422]
[1609556491601,2.50137079,29355.0,29354.0,0.18079422]
[1609556492105,2.50137079,29355.0,29354.0,0.00036264]
[1609556492303,1.50137079,29355.0,29354.0,0.00036264]
[1609556492501,1.50137079,29355.0,29344.0,5.5557]
[1609556492701,1.50137079,29355.0,29354.0,0.00036268]
[1609556492901,0.00041489,29354.0,29345.0,0.0003627]
[1609556493401,0.00041489,29354.0,29346.0,0.18043158]
[1609556493703,0.00041489,29354.0,29347.0,0.0003627]
[1609556494205,1.0,29348.0,29347.0,0.0003627]
[1609556494403,1.0,29348.0,29347.0,4.3102627]
[1609556494602,1.10523489,29348.0,29347.0,4.3102627]
[1609556495505,1.28566647,29348.0,29347.0,4.3102627]
[1609556496007,1.30044552,29348.0,29347.0,4.3102627]
[1609556497011,1.29613496,29348.0,29347.0,4.3102627]
[1609556499011,1.30044488,29348.0,29347.0,4.3102627]
[1609556500212,0.30044488,29348.0,29347.0,4.3102627]
[1609556501212,0.30044488,29348.0,29347.0,0.0003627]
[1609556501413,0.30044488,29348.0,29346.0,0.18043158]
[1609556501414,4.8603,29347.0,29346.0,0.18043158]
[1609556502014,4.8603,29347.0,29346.0,0.18079429]
[1609556502516,0.29572007,29348.0,29346.0,0.18079429]
[1609556503114,0.29572007,29348.0,29347.0,0.00036271]
[1609556503315,0.31649896,29348.0,29347.0,0.00036271]
[1609556505417,0.31691386,29348.0,29347.0,0.00036271]
[1609556506619,0.30046183,29348.0,29346.0,0.18043158]
[1609556507019,0.30004693,29348.0,29347.0,0.00036271]
[1609556507422,0.30046184,29348.0,29347.0,0.00036271]
[1609556508124,0.90420485,29348.0,29347.0,0.00036271]
[1609556508622,0.92502573,29348.0,29347.0,0.00036271]
[1609556509022,5.80762573,29348.0,29347.0,0.00036271]
[1609556509724,5.78680485,29348.0,29347.0,0.00036271]
[1609556510222,6.78680485,29348.0,29347.0,0.00036271]
[1609556510925,6.80763328,29348.0,29347.0,0.00036271]
[1609556511925,6.80721837,29348.0,29347.0,0.00036271]
[1609556512125,6.80763329,29348.0,29347.0,0.00036271]
[1609556512527,6.78680486,29348.0,29347.0,0.00036271]
[1609556513227,6.80762707,29348.0,29347.0,0.00036271]
[1609556514229,5.80762707,29348.0,29347.0,0.00036271]
[1609556515130,0.92502707,29348.0,29347.0,0.00036271]
[1609556515730,0.90420486,29348.0,29347.0,0.00036271]
[1609556517531,6.59990486,29348.0,29347.0,0.00036271]
[1609556517932,6.59990486,29348.0,29339.0,0.0003635]
[1609556518133,0.1008,29347.0,29339.0,0.0003635]
[1609556518332,0.1008,29347.0,29335.0,0.03815651]
[1609556518533,0.00041496,29346.0,29340.0,0.00036353]
[1609556518734,0.00041496,29346.0,29335.0,1.03852004]
[1609556519032,0.00041496,29346.0,29341.0,0.00036353]
[1609556519232,0.00041496,29346.0,29336.0,0.00036353]
[1609556519634,0.18043158,29337.0,29336.0,0.00036353]
[1609556519835,0.30085158,29337.0,29336.0,0.00036353]
[1609556523237,0.30085158,29337.0,29335.0,0.18043158]
[1609556523437,0.30085158,29337.0,29336.0,0.00036355]
[1609556524839,0.30126657,29337.0,29336.0,0.00036355]
[1609556526643,0.30085158,29337.0,29336.0,0.00036355]
[1609556527344,5.12515158,29337.0,29336.0,0.00036355]
[1609556527845,4.94472,29337.0,29336.0,0.00036355]
[1609556528445,0.12042,29337.0,29336.0,0.00036355]
[1609556529043,0.00432881,29341.0,29336.0,0.00036355]
[1609556529447,0.01483907,29341.0,29336.0,0.00036355]
[1609556529646,3.8594,29339.0,29336.0,0.00036355]
[1609556529846,3.98909,29339.0,29336.0,1.00036355]
[1609556530246,3.98909,29339.0,29337.0,0.00036355]
[1609556531048,3.98909,29339.0,29334.0,0.00036355]
[1609556531646,3.98909,29339.0,29338.0,0.18043158]
[1609556532148,3.98909,29339.0,29338.0,0.18079511]
[1609556532746,3.98909,29339.0,29338.0,1.18079511]
[1609556532947,0.12969,29339.0,29338.0,1.95839511]
[1609556534248,0.12969,29339.0,29338.0,2.95839511]
[1609556534650,0.12969,29339.0,29338.0,2.99655187]
[1609556534849,0.27792307,29346.0,29338.0,2.99655187]
[1609556535350,0.27792307,29346.0,29339.0,0.00036349]
[1609556535650,0.27792307,29346.0,29345.0,0.18043158]
[1609556536051,0.27792307,29346.0,29345.0,0.18079507]
[1609556536653,0.27792307,29346.0,29345.0,0.79469507]
[1609556536853,0.27792307,29346.0,29345.0,1.79469507]
[1609556537457,0.2736,29346.0,29345.0,1.79469507]
[1609556537655,0.2736,29346.0,29345.0,0.79469507]
[1609556546466,0.2736,29346.0,29345.0,1.79469507]
[1609556548168,0.10482,29348.0,29345.0,1.79469507]
[1609556548368,0.46444578,29350.0,29345.0,1.79469507]
[1609556548771,0.46444578,29350.0,29346.0,0.00036346]
[1609556548968,0.46013158,29350.0,29346.0,0.00036346]
[1609556549668,0.46013158,29350.0,29349.0,0.18043158]
[1609556549869,0.4644462,29350.0,29349.0,1.18043158]
[1609556550070,0.4644462,29350.0,29349.0,1.18079504]
[1609556550469,0.4644462,29350.0,29349.0,1.86599504]
[1609556550870,0.46013158,29350.0,29349.0,1.86599504]
[1609556551372,0.46013158,29350.0,29349.0,1.18079504]
[1609556551570,0.2797,29350.0,29349.0,1.18079504]
[1609556554880,0.43695,29350.0,29349.0,1.18079504]
[1609556556281,0.43695,29350.0,29349.0,0.18079504]
[1609556556483,0.43695,29350.0,29349.0,1.18079504]
[1609556556783,0.43695,29350.0,29349.0,0.18079504]
[1609556557283,0.43695,29350.0,29349.0,1.18079504]
[1609556559384,0.43695,29350.0,29349.0,0.18079504]
[1609556559684,0.43695,29350.0,29349.0,1.18079504]
[1609556570700,0.43695,29350.0,29349.0,0.18079504]
[1609556572300,0.43736486,29350.0,29349.0,0.18079504]
[1609556572600,0.43695,29350.0,29349.0,0.18079504]
[1609556573301,0.43695,29350.0,29349.0,4.34109504]
[1609556573499,0.43736487,29350.0,29349.0,4.34109504]
[1609556574402,0.43695,29350.0,29349.0,4.34109504]
[1609556575203,0.43736487,29350.0,29349.0,4.34109504]
[1609556575502,0.43695,29350.0,29349.0,4.34109504]
[1609556584412,0.15725,29350.0,29349.0,4.34109504]
[1609556584613,0.18043158,29351.0,29349.0,5.34109504]
[1609556584816,0.15837,29350.0,29349.0,5.34109504]
[1609556585015,0.15837,29350.0,29349.0,5.34073158]
[1609556585216,0.15837,29350.0,29349.0,5.34109494]
[1609556587817,0.15837,29350.0,29349.0,5.37921562]
[1609556589617,0.15837,29350.0,29349.0,5.34109494]
[1609556589818,0.135,29350.0,29349.0,5.34109494]
[1609556590018,0.135,29350.0,29349.0,5.37885043]
[1609556590217,0.135,29350.0,29349.0,5.37921375]
[1609556590420,0.135,29350.0,29349.0,6.37921375]
[1609556591319,0.0868,29350.0,29349.0,6.37921375]
[1609556592820,0.08472914,29350.0,29349.0,6.37921375]
[1609556593721,0.08472914,29350.0,29349.0,8.19562161]
[1609556595524,0.16615,29356.0,29349.0,8.19562161]
[1609556595721,0.16615,29356.0,29349.0,4.03532161]
[1609556596022,0.16615,29356.0,29350.0,1.85450851]
[1609556596221,0.16615,29356.0,29355.0,0.18043158]
[1609556596421,0.00430285,29363.0,29355.0,2.18043158]
[1609556596621,0.00430285,29363.0,29355.0,2.18079483]
[1609556596822,0.00430285,29363.0,29356.0,0.00036325]
[1609556597524,0.00430285,29363.0,29361.0,3.9659]
[1609556597823,0.00430285,29363.0,29362.0,0.00036325]
[1609556598125,0.00430285,29363.0,29362.0,0.18079483]
[1609556601631,0.01045247,29364.0,29362.0,0.18079483]
[1609556601632,0.0147535,29364.0,29362.0,0.18079483]
[1609556602033,0.0147535,29364.0,29362.0,0.18043158]
[1609556603236,0.00430122,29365.0,29362.0,0.18043158]
[1609556603635,0.00430122,29365.0,29363.0,0.00036323]
[1609556605335,0.01474583,29366.0,29363.0,0.00036323]
[1609556605735,0.01474583,29366.0,29365.0,5.1411]
[1609556606436,0.01474583,29366.0,29365.0,5.32153158]
[1609556607338,0.29109669,29367.0,29365.0,5.32153158]
[1609556608239,0.2868,29367.0,29365.0,5.32153158]
[1609556613046,0.41237,29367.0,29365.0,5.32153158]
[1609556617652,5.5368,29360.0,29359.0,1.0]
[1609556617850,5.7675,29360.0,29359.0,1.0]
[1609556618052,5.7675,29360.0,29359.0,1.00036327]
[1609556618255,5.7675,29360.0,29359.0,0.00036327]
[1609556618454,6.94793158,29360.0,29359.0,0.00036327]
[1609556618654,6.94793158,29360.0,29357.0,0.18043158]
[1609556618853,6.84714635,29360.0,29359.0,0.00036329]
[1609556619053,6.84673158,29360.0,29358.0,0.00036331]
[1609556619757,0.00041477,29359.0,29358.0,0.00036331]
[1609556620357,1.00041477,29359.0,29358.0,0.00036331]
[1609556620760,1.00041477,29359.0,29358.0,5.67156331]
[1609556622261,1.00041477,29359.0,29358.0,0.00036331]
[1609556622460,0.00041477,29359.0,29358.0,0.00036331]
[1609556623263,0.00470011,29359.0,29358.0,0.00036331]
[1609556627766,0.00428534,29359.0,29358.0,0.00036331]
[1609556629568,0.00428534,29359.0,29357.0,0.18043158]
[1609556630368,0.00428534,29359.0,29358.0,0.7997]
[1609556632773,0.68808534,29359.0,29358.0,0.7997]
[1609556632973,0.00428534,29359.0,29357.0,0.18043158]
[1609556633173,5.2551,29358.0,29357.0,0.18043158]
[1609556634274,6.2551,29358.0,29357.0,0.18043158]
[1609556634575,6.2698393,29358.0,29357.0,0.18043158]
[1609556636277,5.28621499,29358.0,29357.0,0.18043158]
[1609556637078,5.89025733,29358.0,29357.0,0.18043158]
[1609556637982,5.28621977,29358.0,29357.0,0.18043158]
[1609556638280,6.28621977,29358.0,29357.0,0.18043158]
[1609556639084,6.88997872,29358.0,29357.0,0.18043158]
[1609556641685,6.89039354,29358.0,29357.0,0.18043158]
[1609556641984,6.89039354,29358.0,29357.0,0.180796]
[1609556642285,5.89039354,29358.0,29357.0,0.180796]
[1609556642487,6.89039354,29358.0,29357.0,0.180796]
[1609556643488,6.86971889,29358.0,29357.0,0.180796]
[1609556648300,5.86971889,29358.0,29357.0,0.180796]
[1609556650504,5.25981708,29358.0,29357.0,0.180796]
[1609556653708,5.25551482,29358.0,29357.0,0.180796]
[1609556653905,0.00041482,29358.0,29357.0,0.180796]
[1609556659314,0.00430351,29359.0,29357.0,0.180796]
[1609556659515,0.31423642,29360.0,29357.0,0.180796]
[1609556659815,0.31423642,29360.0,29358.0,0.00036435]
[1609556660319,0.30993158,29360.0,29358.0,0.00036435]
[1609556673040,0.0004148,29359.0,29358.0,0.00036435]
[1609556673241,5.3573148,29359.0,29358.0,0.00036435]
[1609556675146,5.9720646,29359.0,29358.0,0.00036435]
[1609556676748,7.20674468,29359.0,29358.0,0.00036435]
[1609556679754,7.20674468,29359.0,29354.0,0.00036441]
[1609556680054,7.20674468,29359.0,29358.0,0.00036441]
[1609556680256,7.20632988,29359.0,29355.0,0.18079599]
[1609556680455,1.0,29358.0,29355.0,0.18079599]
[1609556680659,1.0,29358.0,29356.0,0.00036441]
[1609556681861,0.63554112,29357.0,29356.0,0.00036441]
[1609556682061,0.8159727,29357.0,29356.0,0.00036441]
[1609556690067,5.0478,29353.0,29346.0,0.03878143]
[1609556690268,5.0478,29353.0,29351.0,0.18043158]
[1609556690871,5.0478,29353.0,29352.0,0.000364]
[1609556692270,5.22823158,29353.0,29352.0,0.000364]
[1609556695273,5.22823158,29353.0,29351.0,1.18043158]
[1609556695474,5.37496158,29353.0,29352.0,0.000364]
[1609556695674,0.32716158,29353.0,29352.0,0.000364]
[1609556703184,5.30106158,29353.0,29352.0,0.000364]
[1609556703585,5.30147641,29353.0,29352.0,0.000364]
[1609556704185,5.30106158,29353.0,29352.0,0.03878307]
[1609556704387,5.30106158,29353.0,29352.0,0.000364]
[1609556706590,5.30147641,29353.0,29352.0,0.000364]
[1609556707291,5.30106158,29353.0,29352.0,0.000364]
[1609556708394,5.30106158,29353.0,29352.0,0.03878302]
[1609556708594,5.30106158,29353.0,29352.0,0.000364]
[1609556709694,5.30106158,29353.0,29352.0,0.03878317]
[1609556712398,6.30106158,29353.0,29352.0,0.03878317]
[1609556712598,6.30106158,29353.0,29348.0,0.03878317]
[1609556712599,6.3014764,29353.0,29348.0,0.03878317]
[1609556712799,1.3275764,29353.0,29352.0,0.000364]
[1609556712998,5.5349764,29353.0,29352.0,0.000364]
[1609556713198,5.5349764,29353.0,29345.0,0.03878337]
[1609556713399,5.5349764,29353.0,29352.0,0.00036403]
[1609556713600,5.53456158,29353.0,29346.0,0.00036403]
[1609556713999,5.53497644,29353.0,29352.0,0.00036403]
[1609556714199,0.00041488,29352.0,29347.0,0.00036405]
[1609556714400,0.14714488,29353.0,29352.0,0.00036405]
[1609556714799,5.74033,29353.0,29348.0,0.00036407]
[1609556714999,5.7407449,29353.0,29352.0,0.00036407]
[1609556715200,0.0004149,29352.0,29349.0,0.00036407]
[1609556715599,5.7407449,29353.0,29352.0,0.00036407]
[1609556715901,0.73469225,29351.0,29350.0,0.00036407]
[1609556716099,0.73469225,29351.0,29342.0,4.8896]
[1609556716300,0.73510715,29351.0,29350.0,0.00036407]
[1609556716500,0.0004149,29350.0,29343.0,0.00036407]
[1609556716800,1.91553873,29351.0,29342.0,4.8896]
[1609556717001,0.0004149,29349.0,29344.0,0.00036407]
[1609556717303,0.0004149,29350.0,29343.0,0.00036407]
[1609556717502,0.0004149,29348.0,29345.0,0.00036407]
[1609556717901,0.0004149,29350.0,29343.0,0.00036407]
[1609556718103,1.91512383,29351.0,29342.0,4.8896]
[1609556718104,0.0004149,29347.0,29346.0,0.00036407]
[1609556718302,0.10812,29347.0,29344.0,0.00036407]
[1609556718503,0.18043158,29345.0,29344.0,0.00036407]
[1609556718703,0.18043158,29345.0,29343.0,0.00036407]
[1609556718904,0.18084647,29345.0,29344.0,0.00036407]
[1609556719103,0.18043158,29345.0,29344.0,0.00036407]
[1609556719504,0.18043158,29345.0,29343.0,0.00036407]
[1609556719704,0.18043158,29345.0,29344.0,0.00036407]
[1609556720207,0.18043158,29345.0,29343.0,0.00036407]
[1609556720405,0.18043158,29345.0,29344.0,0.00036407]
[1609556720904,0.18043158,29345.0,29343.0,0.00036407]
[1609556721105,0.18043158,29345.0,29342.0,4.8896]
[1609556721304,0.18043158,29345.0,29344.0,0.00036407]
[1609556721505,0.18043158,29345.0,29343.0,0.00036407]
[1609556721706,0.18043158,29345.0,29344.0,0.00036407]
[1609556721906,0.18043158,29345.0,29342.0,4.8896]
[1609556722105,0.18043158,29345.0,29344.0,0.00036407]
[1609556722305,0.18043158,29345.0,29343.0,0.00036407]
[1609556722506,0.18043158,29345.0,29342.0,4.8896]
[1609556722507,0.18043158,29345.0,29344.0,0.00036407]
[1609556722809,0.18043158,29345.0,29343.0,0.00036407]
[1609556723106,0.18043158,29345.0,29344.0,0.00036407]
[1609556723708,0.18043158,29345.0,29343.0,0.00036407]
[1609556723908,0.18043158,29345.0,29344.0,0.00036407]
[1609556724511,0.18043158,29345.0,29343.0,0.00036407]
[1609556724711,0.18043158,29345.0,29344.0,0.00036407]
[1609556725112,0.18043158,29345.0,29343.0,0.00036407]
[1609556730318,5.243,29344.0,29343.0,0.00036407]
[1609556730518,5.243,29344.0,29342.0,0.00036407]
[1609556730719,5.243,29344.0,29343.0,0.00036407]
[1609556731221,5.243,29344.0,29342.0,0.00036407]
[1609556731421,5.243,29344.0,29343.0,0.00036407]
[1609556731823,5.243,29344.0,29341.0,0.18043158]
[1609556731824,5.243,29344.0,29342.0,0.00036407]
[1609556732024,5.243,29344.0,29343.0,0.00036407]
[1609556732625,0.18043158,29345.0,29337.0,0.00036407]
[1609556732825,0.18043158,29345.0,29343.0,0.00036407]
[1609556733025,0.18043158,29345.0,29338.0,0.00036407]
[1609556733325,0.18043158,29345.0,29344.0,0.00036407]
[1609556733526,0.18043158,29345.0,29339.0,0.00036407]
[1609556733826,0.18043158,29345.0,29337.0,0.03878829]
[1609556734225,0.18043158,29345.0,29340.0,0.00036407]
[1609556734426,1.18043158,29345.0,29338.0,0.00036407]
[1609556734626,1.0,29345.0,29341.0,0.00036407]
[1609556734827,1.0,29345.0,29339.0,0.00036407]
[1609556735226,1.0,29345.0,29337.0,0.03878829]
[1609556735427,1.0,29345.0,29340.0,0.00036407]
[1609556735626,1.0,29345.0,29338.0,0.00036407]
[1609556735927,1.0,29345.0,29337.0,0.03878829]
[1609556736327,5.7212,29346.0,29339.0,0.00036407]
[1609556736528,5.7212,29346.0,29338.0,0.00036407]
[1609556736727,0.18043158,29339.0,29337.0,0.03842422]
[1609556736928,0.33837158,29339.0,29337.0,0.03842422]
[1609556737328,0.33837158,29339.0,29337.0,0.03878828]
[1609556741836,0.15794,29339.0,29338.0,4.8082]
[1609556742036,1.0,29345.0,29338.0,5.80856407]
[1609556742235,1.0,29345.0,29338.0,5.84735302]
[1609556742435,0.01465193,29349.0,29338.0,5.84735302]
[1609556742635,0.01465193,29349.0,29348.0,0.18043158]
[1609556742835,0.01465193,29349.0,29348.0,1.78503158]
[1609556743037,0.01506677,29349.0,29348.0,1.7853956]
[1609556743336,0.01465193,29349.0,29348.0,1.7853956]
[1609556744841,0.01465193,29349.0,29348.0,0.7853956]
[1609556745042,0.01465193,29349.0,29348.0,1.7853956]
[1609556747047,0.18043158,29350.0,29348.0,1.7853956]
[1609556747445,0.18043158,29350.0,29349.0,0.00036399]
[1609556747947,0.03098149,29356.0,29349.0,0.00036399]
[1609556747948,0.004283,29356.0,29349.0,0.00036399]
[1609556748648,0.01468478,29357.0,29349.0,0.00036399]
[1609556748848,0.18043158,29356.0,29352.0,0.18043158]
[1609556749049,0.18043158,29356.0,29352.0,1.18043158]
[1609556749249,0.18043158,29356.0,29355.0,4.4764]
[1609556749650,0.18084638,29356.0,29355.0,4.47676346]
[1609556750951,0.0004148,29356.0,29355.0,5.65719504]
[1609556751151,0.01468478,29357.0,29355.0,5.65719504]
[1609556751752,0.29088581,29358.0,29356.0,0.00036346]
[1609556753254,0.00428581,29358.0,29356.0,0.00036346]
[1609556755060,0.00428635,29359.0,29356.0,0.00036346]
[1609556755961,0.1295,29360.0,29356.0,0.00036346]
[1609556756160,4.07,29361.0,29356.0,0.00036346]
[1609556756860,4.07,29361.0,29360.0,0.18043158]
[1609556760364,5.07,29361.0,29360.0,0.18043158]
[1609556765669,5.20261,29361.0,29360.0,0.18043158]
[1609556769376,5.20261,29361.0,29360.0,0.18079495]
[1609556770376,4.20261,29361.0,29360.0,0.18079495]
[1609556770575,4.20261,29361.0,29360.0,1.18079495]
[1609556771577,4.20261,29361.0,29360.0,0.18079495]
[1609556771778,4.20261,29361.0,29360.0,1.18079495]
[1609556772778,4.20261,29361.0,29360.0,1.79349495]
[1609556773379,0.00429682,29366.0,29360.0,1.79349495]
[1609556773578,0.00429682,29366.0,29360.0,1.18079495]
[1609556773778,0.00429682,29366.0,29363.0,4.0328]
[1609556773978,0.00429682,29366.0,29364.0,1.0]
[1609556774179,0.00429682,29366.0,29365.0,5.3366]
[1609556774379,0.00429682,29366.0,29365.0,6.33696333]
[1609556774979,0.00429617,29367.0,29365.0,6.51739491]
[1609556775380,0.00429617,29367.0,29366.0,0.00036333]
[1609556777085,0.00429617,29367.0,29366.0,5.71416333]
[1609556777282,0.00429617,29367.0,29366.0,6.71416333]
[1609556779986,0.01474549,29372.0,29366.0,6.71416333]
[1609556780384,0.01474549,29372.0,29369.0,1.0]
[1609556780585,0.01474549,29372.0,29371.0,0.6787]
[1609556780884,0.01474549,29372.0,29371.0,0.67906326]
[1609556781084,0.01474549,29372.0,29371.0,0.85949484]
[1609556781286,0.00429001,29377.0,29371.0,0.85949484]
[1609556781684,0.00429001,29377.0,29372.0,0.00036326]
[1609556781685,0.00041458,29376.0,29372.0,0.00036326]
[1609556781885,0.11273458,29376.0,29372.0,0.00036326]
[1609556782185,0.0004146,29375.0,29372.0,0.00036326]
[1609556782387,1.0,29373.0,29372.0,0.00036326]
[1609556782585,5.7143,29373.0,29372.0,0.00036326]
[1609556782784,5.7147146,29373.0,29361.0,0.00036326]
[1609556782985,5.7147146,29373.0,29360.0,5.365]
[1609556783185,1.0004146,29373.0,29372.0,0.18043158]
[1609556783387,1.0,29373.0,29372.0,0.18043158]
[1609556783586,1.00041462,29373.0,29372.0,0.18043158]
[1609556784388,0.00041462,29373.0,29372.0,0.18043158]
[1609556784890,0.01508918,29374.0,29372.0,0.18043158]
[1609556785089,0.1808462,29373.0,29372.0,0.18043158]
[1609556785289,0.18512434,29373.0,29372.0,0.18043158]
[1609556786390,1.18512434,29373.0,29372.0,0.18043158]
[1609556788193,1.18470972,29373.0,29372.0,0.18043158]
[1609556788494,1.18512434,29373.0,29372.0,0.18043158]
[1609556790398,0.18512434,29373.0,29372.0,0.18043158]
[1609556791898,0.18512434,29373.0,29366.0,4.9131]
[1609556792409,0.00041462,29372.0,29367.0,0.00036329]
[1609556793099,0.00041462,29372.0,29370.0,0.18043158]
[1609556794402,1.0,29371.0,29370.0,0.18043158]
[1609556794802,1.00041462,29371.0,29370.0,0.18043158]
[1609556795103,1.1808462,29371.0,29370.0,4.23783158]
[1609556795503,1.00041462,29371.0,29370.0,4.23783158]
[1609556795704,1.0,29371.0,29370.0,4.23819488]
[1609556796104,1.00041462,29371.0,29370.0,4.23819488]
[1609556796505,0.0042727,29372.0,29370.0,4.23819488]
[1609556796906,0.0042727,29372.0,29371.0,0.00036327]
[1609556798608,0.30744633,29376.0,29371.0,0.00036327]
[1609556799008,0.0004146,29375.0,29371.0,0.00036327]
[1609556799209,0.0004146,29375.0,29374.0,0.18043158]
[1609556799410,0.0004146,29375.0,29374.0,0.92033158]
[1609556799614,0.00470343,29375.0,29374.0,0.92069485]
[1609556800110,0.0004146,29375.0,29374.0,0.92069485]
[1609556802515,0.0047067,29375.0,29374.0,0.92069485]
[1609556802715,0.0047067,29375.0,29374.0,1.92069485]
[1609556803416,0.0047067,29375.0,29374.0,0.92069485]
[1609556803617,0.0047067,29375.0,29374.0,0.18079485]
[1609556805522,0.0004146,29375.0,29374.0,0.18079485]
[1609556810331,0.0004146,29375.0,29374.0,1.18079485]
[1609556811434,0.0004146,29375.0,29374.0,0.18079485]
[1609556812136,0.11232,29376.0,29374.0,0.18079485]
[1609556812334,0.11232,29376.0,29374.0,0.73049485]
[1609556812535,0.01476374,29377.0,29374.0,0.73049485]
[1609556812736,0.01476374,29377.0,29375.0,0.00036367]
[1609556812936,0.00041457,29376.0,29375.0,0.00036367]
[1609556813637,0.11315457,29376.0,29375.0,0.00036367]
[1609556815039,0.11274,29376.0,29375.0,0.00036367]
[1609556815340,0.11315457,29376.0,29375.0,0.00036367]
[1609556815940,0.11274,29376.0,29375.0,0.00036367]
[1609556818643,0.00430547,29377.0,29375.0,0.00036367]
[1609556818844,0.00041457,29376.0,29375.0,0.00036367]
[1609556819144,0.12190457,29376.0,29375.0,0.00036367]
[1609556823251,0.13665395,29376.0,29375.0,0.00036367]
[1609556824052,0.15304221,29376.0,29375.0,0.00036367]
[1609556827853,0.75731993,29376.0,29375.0,0.00036367]
[1609556830459,1.75731993,29376.0,29375.0,0.00036367]
[1609556833462,1.93775151,29376.0,29375.0,0.00036367]
[1609556833664,1.91706135,29376.0,29375.0,0.00036367]
[1609556834169,2.6570742,29376.0,29375.0,0.00036367]
[1609556838376,1.6570742,29376.0,29375.0,0.00036367]
[1609556838677,2.15387085,29376.0,29375.0,0.00036367]
[1609556839878,1.6570742,29376.0,29375.0,0.00036367]
[1609556847192,1.47664262,29376.0,29375.0,0.00036367]
[1609556847594,1.47664262,29376.0,29375.0,5.13706367]
[1609556847794,1.47664262,29376.0,29375.0,6.13706367]
[1609556848397,0.75740146,29376.0,29375.0,6.13706367]
[1609556852604,0.75740146,29376.0,29375.0,5.13706367]
[1609556853008,0.73662977,29376.0,29375.0,5.13706367]
[1609556855016,0.73662977,29376.0,29375.0,6.13706367]
[1609556860627,1.47837971,29376.0,29375.0,6.13706367]
[1609556862028,0.73662977,29376.0,29375.0,6.13706367]
[1609556867735,0.73662977,29376.0,29375.0,5.13706367]
[1609556872045,0.73662977,29376.0,29375.0,6.13706367]
[1609556872644,0.73595533,29376.0,29375.0,6.13706367]
[1609556876855,0.73595533,29376.0,29375.0,0.00036367]
[1609556877055,4.72845533,29376.0,29375.0,0.00036367]
[1609556877252,4.72845533,29376.0,29372.0,0.00036484]
[1609556877454,4.72845533,29376.0,29375.0,0.00036484]